{"text_format":"1","workbook":"xlsx","n_sheets":3,"sheets":["část 1.","část 2. ","Specifikace reportovaných testů"],"not_rendered":{"charts":0,"images":0,"macros":0,"external_links":0,"defined_names":0,"comments":0,"pivot_tables":0},"unopened":[],"bounds":{"document_bytes":16777216,"sheet_cells":100000,"rows_first":2000,"rows_last":500,"rows_between":2000,"halvings":0,"cell_chars":16384,"cell_head_chars":4096},"cells_cut":0,"cells_raw":0,"read":"whole","date_system":"1900"}

{"sheet":"část 1.","index":0,"n_rows":149,"n_cols":5,"rows_kept":149,"cut":false,"hidden":false,"merged":[[148,2,148,4],[8,0,8,1],[4,0,4,4],[6,0,6,4],[2,0,2,4],[139,1,139,3],[140,1,140,3],[141,1,141,3],[144,0,144,4]]}
["Příloha č. 2 zadávací dokumentace"]
[]
["Cenová nabídka - modelový příklad"]
[]
["VZ \"Biochemické a imunochemické analytické systémy pro ONN a.s.\""]
[]
["Hodnotící kritérium č. 1 - Výše nabídkové ceny za povinné reportované testy v CZK bez DPH za 8 let - 65% váha kritéria"]
[]
["Označení reportovaného testu",null,"CELKEM počet reportovaných testů za všechny lokality/ 8 let","Cena za 1 reportovaný test v (CZK) bez DPH","CENA CELKEM za 8 let (CZK) bez DPH"]
["a1","Urea",1090544]
["a2","Urea v moči",4496]
["a3","Kreatinin",1211400]
["a4","Kreatinin v moči",92232]
["a5","Cystatin C",4216]
["a6","Kyselina močová",511344]
["a7","Kyselina močová v moči",1432]
["a8","Na+ (Sodík v séru, likvoru a punktátu)",1137864]
["a9","Na+ (Sodík v moči)",5328]
["a10","K+ (Draslík v séru, likvoru a punktátu)",1152408]
["a11","K+ (Draslík v moči)",5288]
["a12","Cl- (Chloridy v séru, likvoru a punktátu)",1033688]
["a13","Cl- (Chloridy v moči)",4968]
["a14","Vápník",176896]
["a15","Vápník v moči",21352]
["a16","Fosfor",111296]
["a17","Fosfor v moči",9328]
["a18","Hořčík",175440]
["a19","Hořčík v moči",3328]
["a20","Železo celkové",75712]
["a21","Vazebná kapacita železa",39224]
["a22","Vitamin B12",42616]
["a23","Kyselina listová (foláty)",36280]
["a24","Homocystein",6064]
["a25","Bilirubin celkový",776192]
["a26","Bilirubin konjugovaný",190648]
["a27","Bilirubin novorozenecký",14000]
["a28","ALT",997336]
["a29","AST",947440]
["a30","Gamaglutamyltransferáza (GGT)",586048]
["a31","Fosfatáza alkalická (ALP)",453208]
["a32","Laktátdehydrogenáza (LD) v séru, likvoru a punktátu",62792]
["a33","Kreatinkináza (CK)",174408]
["a34","CK-MB mass",1008]
["a35","Myoglobin",27960]
["a36","hs Troponin T nebo I",70360]
["a37","Natriuretické peptidy (NT-proBNP)",40016]
["a38","Amyláza v séru a punktátu",101768]
["a39","Amyláza v moči",4968]
["a40","Pankreatická amyláza v séru",22680]
["a41","Pankreatická amyláza v moči",416]
["a42","Lipáza v séru a punktátu",63320]
["a43","Cholinesterasa",1720]
["a44","Cholesterol celkový v séru a punktátu",558176]
["a45","Cholesterol HDL",461184]
["a46","Cholesterol LDL",470280]
["a47","Triacylglyceroly v séru a punktátu",517872]
["a48","Apolipoprotein A1",6608]
["a49","Apolipoprotein B",5984]
["a50","Lipoprotein (a)",584]
["a51","Bílkovina celková v séru a punktátu",271456]
["a52","Bílkovina celková v moči",47248]
["a53","Bílkovina celková v likvoru",3568]
["a54","Prealbumin",5936]
["a55","Albumin v séru a puktátu",120840]
["a56","Albumin v moči",65008]
["a57","Albumin v likvoru",264]
["a58","Haptoglobin",1128]
["a59","Transferin",34944]
["a60","Solubilní transferinový receptor",5912]
["a61","C3 složka komplementu",912]
["a62","C4 složka komplementu",1024]
["a63","Beta-2-mikroglobulin",5728]
["a64","IgG v séru",23912]
["a65","IgA v séru",21392]
["a66","IgM",20784]
["a67","IgE",13528]
["a68","C-reaktivní protein",754928]
["a69","CIK (cirkulující imunokomplexy)",1176]
["a70","Prokalcitonin",26080]
["a71","Interleukin 6",1440]
["a72","Revmatoidní faktor v séru a punktátu",27416]
["a73","Antistreptolyzin O (ASLO) v séru a punktátu",21720]
["a74","Glukóza v séru, plazmě, likvoru a punktátu",1749496]
["a75","Glukóza v moči",71784]
["a76","Glukóza - hemolyzát",200640]
["a77","Kyselina valproová",672]
["a78","Carbamazepin",184]
["a79","Digoxin",12872]
["a80","Teofylin",4048]
["a81","Gentamycin",1680]
["a82","Vankomycin",816]
["a83","Etanol",11224]
["a84","Tyreotropin (TSH)",468992]
["a85","Trijodtyronin celkový (TT3)",1032]
["a86","Trijodtyronin volný (FT3)",37000]
["a87","Tyroxin volný (FT4)",199648]
["a88","Thyreoglobulin",2216]
["a89","Autoprotilátky proti mikrosomálnímu antigenu (Anti-TPO)",15416]
["a90","Autoprotilátky proti tyreoglobulinu (Anti-TG)",12464]
["a91","Choriogonadotropin (HCG)",10552]
["a92","Folitropin (FSH)",5128]
["a93","Lutropin (LH)",4560]
["a94","Prolaktin",5648]
["a95","Estradiol",3200]
["a96","Progesteron",3032]
["a97","Testosteron celkový",5472]
["a98","Sex hormone binding globulin (SHBG)",1488]
["a99","Kortizol v séru",5464]
["a100","Kortizol v moči",504]
["a101","Spojovací peptid proinzulinu (C-peptid)",7168]
["a102","Prostatický specifický antigen (PSA)",126872]
["a103","Prostatický specifický antigen (PSA) - volný",34168]
["a104","Alfa-1-fetoprotein (AFP)",9008]
["a105","Karcinoembryonalni antigen (CEA) v séru a punktátu",34640]
["a106","Carbohydrate antigen 15-3",11696]
["a107","Carbohydrate antigen 19-9",25456]
["a108","Carbohydrate antigen 125",9216]
["a109","Feritin",47800]
["a110","Parathormon intaktní",34176]
["a111","25-hydroxyvitamin D",37376]
["a112","Laktát v plazmě",18888]
["a113","Laktát v likvoru, puktátu",3080]
["a114","Amoniak",624]
["a115","Hemoglobin ve stolici",1240]
["a116","Sérové indexy",1258976]
["a117","Anti HAV  IgG+IgM",2704]
["a118","Anti HAV IgM",1072]
["a119","HBsAg (Australský antigen)",5544]
["a120","Anti HBs",4040]
["a121","Anti HBc IgG +IgM",3536]
["a122","Anti HBc IgM",304]
["a123","Anti HBc IgM",304]
["a124","HCV  (Ag/Ab)",4088]
["a125","HIV-1 (protilátky)",3560]
["a126","Ab/CMV IgG kvantit.",1720]
["a127","Ab/CMV IgM",1720]
["a128","Ab/Toxoplazma IgG kvant.",688]
["a129","Ab/Toxopl.IgM",688]
["a130","Ab/SARS-COV-2-IgG",5600]
[null,"CELKEM povinné testy za všechny lokality v CZK bez DPH/ 8 let*",null,null,{"$f":"MIN(H140,K140,N140)","v":0}]
[null,"CELKEM výše DPH v CZK za 8 let ",null,null,0]
[null,"CELKEM za povinné testy za všechny lokality v CZK s DPH/ 8 let",null,null,0]
[]
["Poznámka: Tento dokument bude přílohou č. 1 Rámcové kupní smlouvy"]
["* Celková cena za povinné testy za všechny lokality v CZK za  8 let, nesmí překročit předpokládanou hodnotu veřejné zakázky, tj. 220 000 000,- Kč bez DPH v souladu ustanovením článku 7 Výzvy k předložení nabídek a zadávací dokumentaci této veřejné zakázky."]
[]
["V…...................dne…............"]
[null,null,null,"…....................................................."]
[null,null,"Podpis osoby oprávněné jednat jménem účastníka"]

{"sheet":"část 2. ","index":1,"n_rows":56,"n_cols":7,"rows_kept":56,"cut":false,"hidden":false,"merged":[[55,5,55,6],[48,0,48,6],[7,0,7,1],[2,0,2,4],[4,0,4,4],[6,0,6,4],[44,2,44,5],[45,2,45,5],[46,2,46,5],[53,5,53,6],[54,5,54,6],[49,0,49,6],[50,0,50,6]]}
["Příloha č. 2 zadávací dokumentace"]
[]
["Cenová nabídka - modelový příklad"]
[]
["VZ \"Biochemické a imunochemické analytické systémy pro ONN a.s.\""]
[]
["Hodnotící kritérium č. 2 - Výše nabídkové ceny za nepovinné reportované testy v CZK bez DPH za 8 let - 10% váha kritéria"]
["Nepovinné reportované testy",null,"CELKEM počet vzorků za všechny lokality/ 8 let","Substituční cena za 1 reportovaný test  v kč bez DPH *","Cena za 1 reportovaný test v (CZK) bez DPH","CENA CELKEM za 8 let (CZK) bez DPH","Ano - 1 bod/Ne -0 bodů"]
["b1","ELF score (Enhanced Liver Fibrosis)",1032,null,null,{"$f":"C9*D9","v":0}]
["b2","Eozinofilní kationový protein (ECP)",2976,null,null,{"$f":"C10*D10","v":0}]
["b3","Anti-CCP",2600,null,null,0]
["b4","TSI (TSH receptor Stimulating Imunoglobulins)",2912,null,null,0]
["b5","Preeklampsie",1184,null,null,0]
["b6","HE4 (Human Epididymal protein 4)",840,null,null,0]
["b7","Carbohydrate antigen 125*",840,null,null,0]
["b8","ROMA score",816,null,null,0]
["b9","SCC antigen",168,null,null,0]
["b10","Cytokeratin fragment 21-1 (CYFRA) v séru a punktátu",3040,null,null,0]
["b11","Carbohydrate antigen 72-4",9216,null,null,0]
["b12","proPSA",624,null,null,0]
["b13","NSE",2784,null,null,0]
["b14","ALP-kostní (osteáza)",184,null,null,0]
["b15","Osteokalcin",16504,null,null,0]
["b16","Beta-CrossLaps",14832,null,null,0]
["b17","Prokolagen typ I (Propeptid prokolagenu I)",4864,null,null,0]
["b18","Adrenokortikotropin (ACTH)",1176,null,null,0]
["b19","Ab/Treponema screen",6880,null,null,0]
["b20","CMV avidita",80,null,null,0]
["b21","Specifické IgE proti: trávy I (směs)",832,null,null,0]
["b22","Specifické IgE proti: směs roztoči",1896,null,null,0]
["b23","Specifické IgE proti: směs plísně",272,null,null,0]
["b24","Specifické IgE proti: směs stromy 9",864,null,null,0]
["b25","Specifické IgE proti: kočka - srst",408,null,null,0]
["b26","Specifické IgE proti: pes - epitelie",344,null,null,0]
["b27","Specifické IgE proti: vaječný bílek",488,null,null,0]
["b28","Specifické IgE proti: mléko kravské",1096,null,null,0]
["b29","Specifické IgE proti: mouka pšeničná",688,null,null,0]
["b30","Specifické IgE proti: vaječný žloutek",312,null,null,0]
["b31","Specifické IgE proti: gluten - lepek",640,null,null,0]
["b32","Specifické IgE proti: včela medonosná",240,null,null,0]
["b33","Specifické IgE proti: vosa obecná",272,null,null,0]
["b34","Specifické IgE proti: Aspergillus fumigatus",136,null,null,0]
["b35","Specifické IgE proti: Alternaria tenui",272,null,null,0]
["b36","Specifické IgE proti: pyl pelyněk černobýl (Artemisia vulgaris)",96,null,null,{"$f":"C44*D44","v":0}]
[null,null,"CELKEM za nepovinné testy za všechny lokality v CZK bez DPH/ 8 let",null,null,null,{"$f":"MIN(I45,L45,O45)","v":0}]
[null,null,"CELKEM výše DPH v CZK za 8 let ",null,null,null,0]
[null,null,"CELKEM za nepovinné testy za všechny lokality v CZK s DPH/ 8 let",null,null,null,0]
[]
["* Carbohydrate antigen 125 - tento test se používá v rámci gynekolického vyšetření v kombinaci s testem HE4 (Human Epididymal protein 4). Zadavatel požaduje aby tyto dva reporotvané testy byly provedeny na shodném analyzátoru k získání validních výsledků."]
["Substituční cena reportovaného testu* - v případě, že účastník nemá požadovaný reportovaný test ve svém portfoliu, vyplní NE. Zadavatel hodnoty substituční ceny reportovaného testu doplní před hodnocením."]
["Za každý účastníkem nabídnutý nepovinný reportovaný test (vyplní ANO), zadavatel v rámci hodnocení přiřadí účastníkovi jeden (1) bod. Celkem je možné v rámci dílčího kritéria č. 2 získat celkem 36 bodů v případě, že budou v rámci nabídky účastníka vyplněny/nabídnuty položky č. b1 až b36. "]
["Poznámka: Tento dokument bude přílohou č. 1 Rámcové kupní smlouvy"]
[]
["V…...................dne…............"]
[null,null,null,null,null,"…....................................................."]
[null,null,null,null,null,"Podpis osoby oprávněné jednat jménem účastníka"]

{"sheet":"Specifikace reportovaných testů","index":2,"n_rows":303,"n_cols":30,"rows_kept":303,"cut":false,"hidden":false,"merged":[[302,0,350,0],[185,0,226,0],[227,0,269,0],[0,1,0,14],[1,0,1,31],[134,30,134,31],[135,30,135,31],[270,0,301,0],[175,29,175,30],[175,15,175,16],[175,18,175,19],[175,27,175,28],[175,25,175,26],[175,23,175,24],[183,0,183,5]]}
["Příloha č. 2 zadávací dokumentace"]
["Účastník je povinen  v Seznamu metod včetně ocenění vyplnit příslušné slupce (označeno žlutou barvou)."]
["Povinné reportované testy"]
["Označení reportovaného testu","Pracoviště Náchod","Q report. testů","Statim","Pracoviště Rychnov n/K","Q report. testů","Statim","Pracoviště Broumov","Q report. testů","Statim","Pracoviště Jaroměř","Q report. testů","Statim","Pracoviště Opočno","Q report. testů","Statim","CELKEM počet vzorků za všechny lokality/ 1 rok","Celkem počet reportovaných testů za všechny lokality/ 8 let","délka trvání vyšetření Statim","možné velikosti balení/počet testů","pipetovaný objem vzorku (ul)","stabilita reagencie na palubě analyzátoru (dny)","doporučený interval kalibrace, stabilita kalibrace (dny)","reagencie připravené k použití (ANO/NE)","kalibrační materál připravený k použití (ANO/NE)","kontrolní materiál připravený k použití (ANO/NE)","reagencie označené RFID (ANO/NE)","kalibrační materál označený RFID (ANO/NE)","kontrolní materiál označený RFID (ANO/NE)"]
["Urea","ANO",61129,"ANO","ANO",37971,"ANO","ANO",22668,"ANO","ANO",8636,"ANO","ANO",5914,"ANO",{"$f":"C5+F5+I5+L5+O5","v":136318},{"$f":"Q5*8","v":1090544}]
["Urea v moči","ANO",47,"ANO","ANO",440,"ANO","ANO",9,"ANO",null,null,"ANO","ANO",66,"ANO",{"$f":"C6+F6+I6+L6+O6","v":562},{"$f":"Q6*8","v":4496}]
["Kreatinin","ANO",66180,"ANO","ANO",42724,"ANO","ANO",24003,"ANO","ANO",9974,"ANO","ANO",8544,"ANO",151425,1211400]
["Kreatinin v moči","ANO",5385,"ANO","ANO",2526,"ANO","ANO",325,"ANO","ANO",37,"ANO","ANO",3256,"ANO",11529,92232]
["Cystatin C",null,null,null,"ANO",527,null,null,null,null,null,null,null,null,null,null,527,4216]
["Kyselina močová","ANO",23450,"ANO","ANO",17271,"ANO","ANO",10695,"ANO","ANO",5994,"ANO","ANO",6508,"ANO",63918,511344]
["Kyselina močová v moči","ANO",89,"ANO","ANO",null,"ANO","ANO",26,"ANO",null,null,null,"ANO",64,"ANO",179,1432]
["Na+ (Sodík v séru, likvoru a punktátu)","ANO",62799,"ANO","ANO",39163,"ANO","ANO",25076,"ANO","ANO",9717,"ANO","ANO",5478,"ANO",142233,1137864]
["Na+ (Sodík v moči)","ANO",75,"ANO","ANO",447,"ANO","ANO",63,"ANO","ANO",11,"ANO","ANO",70,"ANO",666,5328]
["K+ (Draslík v séru, likvoru a punktátu)","ANO",62799,"ANO","ANO",40911,"ANO","ANO",25076,"ANO","ANO",9715,"ANO","ANO",5550,"ANO",144051,1152408]
["K+ (Draslík v moči)","ANO",75,"ANO","ANO",442,"ANO","ANO",63,"ANO","ANO",11,"ANO","ANO",70,"ANO",661,5288]
["Cl- (Chloridy v séru, likvoru a punktátu)","ANO",63124,"ANO","ANO",25990,"ANO","ANO",25073,"ANO","ANO",9715,"ANO","ANO",5309,"ANO",129211,1033688]
["Cl- (Chloridy v moči)","ANO",45,"ANO","ANO",433,"ANO","ANO",63,"ANO","ANO",11,"ANO",null,69,"ANO",621,4968]
["Vápník","ANO",12491,"ANO","ANO",4718,"ANO","ANO",2330,"ANO","ANO",1577,"ANO","ANO",996,"ANO",22112,176896]
["Vápník v moči","ANO",1621,"ANO","ANO",506,"ANO","ANO",386,"ANO","ANO",68,"ANO","ANO",88,"ANO",2669,21352]
["Fosfor","ANO",8041,"ANO","ANO",3362,"ANO","ANO",1787,"ANO","ANO",407,"ANO","ANO",315,"ANO",13912,111296]
["Fosfor v moči","ANO",211,"ANO",null,442,"ANO","ANO",382,"ANO","ANO",53,"ANO","ANO",78,"ANO",1166,9328]
["Hořčík","ANO",5655,"ANO","ANO",3884,"ANO","ANO",10972,"ANO","ANO",1203,"ANO","ANO",216,"ANO",21930,175440]
["Hořčík v moči","ANO",91,"ANO",null,233,"ANO","ANO",92,"ANO",null,null,null,null,null,null,416,3328]
["Železo celkové","ANO",4094,null,"ANO",2440,null,"ANO",1123,"ANO","ANO",1364,"ANO","ANO",443,"ANO",9464,75712]
["Vazebná kapacita železa","ANO",2378,null,"ANO",1550,null,"ANO",511,null,"ANO",311,"ANO","ANO",153,"ANO",4903,39224]
["Vitamin B12","ANO",3840,null,"ANO",1487,null,null,null,null,null,null,null,null,null,null,5327,42616]
["Kyselina listová (foláty)","ANO",3342,null,"ANO",1193,null,null,null,null,null,null,null,null,null,null,4535,36280]
["Homocystein","ANO",373,null,"ANO",385,"ANO",null,null,null,null,null,null,null,null,null,758,6064]
["Bilirubin celkový","ANO",43273,"ANO","ANO",23187,"ANO","ANO",19305,"ANO","ANO",6645,"ANO","ANO",4614,"ANO",97024,776192]
["Bilirubin konjugovaný","ANO",12490,"ANO","ANO",4201,"ANO","ANO",3144,"ANO","ANO",2044,"ANO","ANO",1952,"ANO",23831,190648]
["Bilirubin novorozenecký","ANO",1060,"ANO","ANO",690,"ANO",null,null,null,null,null,null,null,null,null,1750,14000]
["ALT","ANO",52624,"ANO","ANO",35393,"ANO","ANO",20869,"ANO","ANO",8022,"ANO","ANO",7759,"ANO",124667,997336]
["AST","ANO",49606,"ANO","ANO",33187,"ANO","ANO",20742,"ANO","ANO",7894,"ANO","ANO",7001,"ANO",118430,947440]
["Gamaglutamyltransferáza (GGT)","ANO",34291,"ANO","ANO",16169,"ANO","ANO",13922,"ANO","ANO",4717,"ANO","ANO",4157,"ANO",73256,586048]
["Fosfatáza alkalická (ALP)","ANO",25989,"ANO","ANO",13019,"ANO","ANO",11614,"ANO","ANO",3420,"ANO","ANO",2609,"ANO",56651,453208]
["Laktátdehydrogenáza (LD) v séru, likvoru a punktátu","ANO",3348,"ANO","ANO",1119,"ANO","ANO",3171,"ANO",null,null,null,"ANO",211,"ANO",7849,62792]
["Kreatinkináza (CK)","ANO",8186,"ANO","ANO",5375,"ANO","ANO",6020,"ANO","ANO",1734,"ANO","ANO",486,"ANO",21801,174408]
["CK-MB mass",null,null,null,"ANO",126,null,null,null,null,null,null,null,null,null,null,126,1008]
["Myoglobin","ANO",2707,"ANO","ANO",383,"ANO","ANO",405,"ANO",null,null,null,null,null,null,3495,27960]
["hs Troponin T nebo I","ANO",4315,"ANO",null,2402,"ANO","ANO",2055,"ANO",null,null,null,"ANO",23,null,8795,70360]
["Natriuretické peptidy (NT-proBNP)","ANO",1179,"ANO","ANO",1819,"ANO","ANO",2004,"ANO",null,null,null,null,null,null,5002,40016]
["Amyláza v séru a punktátu","ANO",6563,"ANO","ANO",3495,"ANO","ANO",1528,"ANO","ANO",800,"ANO","ANO",335,"ANO",12721,101768]
["Amyláza v moči","ANO",84,"ANO","ANO",120,"ANO",null,318,"ANO","ANO",54,"ANO","ANO",45,"ANO",621,4968]
["Pankreatická amyláza v séru",null,null,null,"ANO",2835,"ANO",null,null,null,null,null,null,null,null,null,2835,22680]
["Pankreatická amyláza v moči",null,null,null,"ANO",52,"ANO",null,null,null,null,null,null,null,null,null,52,416]
["Lipáza v séru a punktátu","ANO",4698,"ANO","ANO",3217,"ANO",null,null,null,null,null,null,null,null,null,7915,63320]
["Cholinesterasa",null,null,null,"ANO",215,"ANO",null,null,null,null,null,null,null,null,null,215,1720]
["Cholesterol celkový v séru a punktátu","ANO",24561,"ANO","ANO",18748,"ANO","ANO",12910,"ANO","ANO",6494,"ANO","ANO",7059,"ANO",69772,558176]
["Cholesterol HDL","ANO",19705,"ANO","ANO",15700,null,"ANO",9824,"ANO","ANO",5844,"ANO","ANO",6575,"ANO",57648,461184]
["Cholesterol LDL","ANO",20377,"ANO","ANO",16257,null,"ANO",9840,"ANO","ANO",5849,"ANO","ANO",6462,"ANO",58785,470280]
["Triacylglyceroly v séru a punktátu","ANO",22940,"ANO","ANO",16461,"ANO","ANO",12195,"ANO","ANO",6146,"ANO","ANO",6992,"ANO",64734,517872]
["Apolipoprotein A1","ANO",359,null,"ANO",467,null,null,null,null,null,null,null,null,null,null,826,6608]
["Apolipoprotein B","ANO",280,null,"ANO",468,null,null,null,null,null,null,null,null,null,null,748,5984]
["Lipoprotein (a)",null,null,null,"ANO",73,null,null,null,null,null,null,null,null,null,null,73,584]
["Bílkovina celková v séru a punktátu","ANO",19228,"ANO","ANO",6850,"ANO","ANO",5236,"ANO","ANO",2248,"ANO","ANO",370,"ANO",33932,271456]
["Bílkovina celková v moči","ANO",1428,"ANO","ANO",588,"ANO","ANO",2393,"ANO","ANO",1413,"ANO","ANO",84,"ANO",5906,47248]
["Bílkovina celková v likvoru","ANO",334,"ANO","ANO",112,"ANO",null,null,null,null,null,null,null,null,null,446,3568]
["Prealbumin","ANO",526,"ANO","ANO",216,"ANO",null,null,null,null,null,null,null,null,null,742,5936]
["Albumin v séru a puktátu","ANO",7661,"ANO","ANO",2340,"ANO","ANO",4525,"ANO","ANO",241,"ANO","ANO",338,"ANO",15105,120840]
["Albumin v moči","ANO",2592,null,"ANO",2306,"ANO","ANO",54,"ANO",null,null,null,"ANO",3174,"ANO",8126,65008]
["Albumin v likvoru",null,7,"ANO","ANO",26,"ANO",null,null,null,null,null,null,null,null,null,33,264]
["Haptoglobin","ANO",141,null,null,null,null,null,null,null,null,null,null,null,null,null,141,1128]
["Transferin","ANO",2804,null,"ANO",540,null,"ANO",531,"ANO","ANO",325,"ANO","ANO",168,"ANO",4368,34944]
["Solubilní transferinový receptor","ANO",318,null,"ANO",421,null,null,null,null,null,null,null,null,null,null,739,5912]
["C3 složka komplementu","ANO",82,null,"ANO",32,null,null,null,null,null,null,null,null,null,null,114,912]
["C4 složka komplementu","ANO",95,null,"ANO",33,null,null,null,null,null,null,null,null,null,null,128,1024]
["Beta-2-mikroglobulin","ANO",638,null,"ANO",78,null,null,null,null,null,null,null,null,null,null,716,5728]
["IgG v séru","ANO",2155,null,"ANO",615,null,null,null,null,null,null,null,"ANO",219,"ANO",2989,23912]
["IgA v séru","ANO",1783,null,"ANO",631,null,null,null,null,null,null,null,"ANO",260,"ANO",2674,21392]
["IgM","ANO",1766,null,"ANO",612,null,null,null,null,null,null,null,"ANO",220,"ANO",{"$f":"C70+F70+I70+L70+O70","v":2598},{"$f":"Q70*8","v":20784}]
["IgE","ANO",1420,null,"ANO",271,null,null,null,null,null,null,null,null,null,null,1691,13528]
["C-reaktivní protein","ANO",40700,"ANO","ANO",29874,"ANO","ANO",15589,"ANO","ANO",4776,null,"ANO",3427,"ANO",94366,754928]
["CIK (cirkulující imunokomplexy)",null,null,null,"ANO",147,null,null,null,null,null,null,null,null,null,null,147,1176]
["Prokalcitonin","ANO",2981,"ANO","ANO",279,"ANO",null,null,null,null,null,null,null,null,null,3260,26080]
["Interleukin 6","ANO",171,"ANO","ANO",9,"ANO",null,null,null,null,null,null,null,null,null,180,1440]
["Revmatoidní faktor v séru a punktátu","ANO",1828,null,"ANO",1083,null,null,null,null,"ANO",299,null,"ANO",217,null,3427,27416]
["Antistreptolyzin O (ASLO) v séru a punktátu","ANO",1500,null,"ANO",692,null,null,null,null,"ANO",279,null,"ANO",244,null,2715,21720]
["Glukóza v séru, plazmě, likvoru a punktátu","ANO",123942,"ANO","ANO",40812,"ANO","ANO",30832,"ANO","ANO",12150,null,"ANO",10951,null,218687,1749496]
["Glukóza v moči","ANO",521,"ANO","ANO",388,null,"ANO",2359,"ANO","ANO",1166,null,"ANO",4539,null,8973,71784]
["Glukóza - hemolyzát","ANO",1195,"ANO",null,null,null,"ANO",19475,"ANO","ANO",1868,null,"ANO",2542,null,25080,200640]
["Kyselina valproová",null,null,null,"ANO",84,"ANO",null,null,null,null,null,null,null,null,null,84,672]
["Carbamazepin",null,null,null,"ANO",23,"ANO",null,null,null,null,null,null,null,null,null,23,184]
["Digoxin","ANO",498,"ANO","ANO",769,"ANO","ANO",342,"ANO",null,null,null,null,null,null,1609,12872]
["Teofylin","ANO",138,"ANO","ANO",193,"ANO","ANO",175,"ANO",null,null,null,null,null,null,506,4048]
["Gentamycin","ANO",107,"ANO","ANO",103,"ANO",null,null,null,null,null,null,null,null,null,210,1680]
["Vankomycin","ANO",102,"ANO",null,null,null,null,null,null,null,null,null,null,null,null,102,816]
["Etanol","ANO",522,"ANO","ANO",710,"ANO","ANO",171,"ANO",null,null,null,null,null,null,1403,11224]
["Tyreotropin (TSH)","ANO",20817,null,"ANO",12608,"ANO","ANO",14188,"ANO","ANO",6146,"ANO","ANO",4865,"ANO",58624,468992]
["Trijodtyronin celkový (TT3)",null,null,null,"ANO",129,null,null,null,null,null,null,null,null,null,null,129,1032]
["Trijodtyronin volný (FT3)","ANO",678,null,"ANO",1400,null,"ANO",969,"ANO",null,null,null,"ANO",1578,"ANO",4625,37000]
["Tyroxin volný (FT4)","ANO",9939,null,"ANO",3213,null,"ANO",7347,"ANO","ANO",2327,"ANO","ANO",2130,"ANO",24956,199648]
["Thyreoglobulin","ANO",206,null,"ANO",71,null,null,null,null,null,null,null,null,null,null,277,2216]
["Autoprotilátky proti mikrosomálnímu antigenu (Anti-TPO)","ANO",1695,null,"ANO",232,"ANO",null,null,null,null,null,null,null,null,null,1927,15416]
["Autoprotilátky proti tyreoglobulinu (Anti-TG)","ANO",1404,null,"ANO",154,null,null,null,null,null,null,null,null,null,null,1558,12464]
["Choriogonadotropin (HCG)","ANO",791,"ANO","ANO",477,"ANO",null,null,null,null,null,null,"ANO",51,"ANO",1319,10552]
["Folitropin (FSH)","ANO",536,null,"ANO",105,null,null,null,null,null,null,null,null,null,null,641,5128]
["Lutropin (LH)","ANO",454,null,"ANO",116,null,null,null,null,null,null,null,null,null,null,570,4560]
["Prolaktin","ANO",521,null,"ANO",185,null,null,null,null,null,null,null,null,null,null,706,5648]
["Estradiol","ANO",331,null,"ANO",69,"ANO",null,null,null,null,null,null,null,null,null,400,3200]
["Progesteron","ANO",220,null,"ANO",159,null,null,null,null,null,null,null,null,null,null,379,3032]
["Testosteron celkový","ANO",471,null,"ANO",213,null,null,null,null,null,null,null,null,null,null,684,5472]
["Sex hormone binding globulin (SHBG)","ANO",136,null,"ANO",50,null,null,null,null,null,null,null,null,null,null,186,1488]
["Kortizol v séru","ANO",545,null,"ANO",138,null,null,null,null,null,null,null,null,null,null,683,5464]
["Kortizol v moči","ANO",44,null,"ANO",19,null,null,null,null,null,null,null,null,null,null,63,504]
["Spojovací peptid proinzulinu (C-peptid)","ANO",677,null,"ANO",219,null,null,null,null,null,null,null,null,null,null,896,7168]
["Prostatický specifický antigen (PSA)","ANO",5731,null,"ANO",4312,null,"ANO",2503,null,"ANO",1957,null,"ANO",1356,null,15859,126872]
["Prostatický specifický antigen (PSA) - volný","ANO",961,null,"ANO",1574,null,"ANO",628,null,"ANO",818,null,"ANO",290,null,4271,34168]
["Alfa-1-fetoprotein (AFP)","ANO",697,null,"ANO",429,null,null,null,null,null,null,null,null,null,null,1126,9008]
["Karcinoembryonalni antigen (CEA) v séru a punktátu","ANO",3339,null,"ANO",991,null,null,null,null,null,null,null,null,null,null,4330,34640]
["Carbohydrate antigen 15-3","ANO",1286,null,"ANO",176,null,null,null,null,null,null,null,null,null,null,1462,11696]
["Carbohydrate antigen 19-9","ANO",2153,null,"ANO",1029,null,null,null,null,null,null,null,null,null,null,3182,25456]
["Carbohydrate antigen 125","ANO",838,null,"ANO",314,null,null,null,null,null,null,null,null,null,null,1152,9216]
["Feritin","ANO",3831,"ANO","ANO",2144,null,null,null,null,null,null,null,null,null,null,5975,47800]
["Parathormon intaktní","ANO",4272,null,null,null,null,null,null,null,null,null,null,null,null,null,4272,34176]
["25-hydroxyvitamin D","ANO",3093,"ANO","ANO",1579,null,null,null,null,null,null,null,null,null,null,{"$f":"C115+F115+I115+L115+O115","v":4672},37376]
["Laktát v plazmě","ANO",892,"ANO","ANO",1237,"ANO","ANO",232,null,null,null,null,null,null,null,2361,18888]
["Laktát v likvoru, puktátu","ANO",337,"ANO","ANO",48,"ANO",null,null,null,null,null,null,null,null,null,385,3080]
["Amoniak",null,null,null,"ANO",78,"ANO",null,null,null,null,null,null,null,null,null,78,624]
["Hemoglobin ve stolici",null,null,null,"ANO",155,null,null,null,null,null,null,null,null,null,null,155,1240]
["Sérové indexy","ANO",93354,null,null,null,null,"ANO",32147,null,"ANO",15893,null,"ANO",15978,null,157372,1258976]
["Anti HAV  IgG+IgM",null,null,null,"ANO",338,null,null,null,null,null,null,null,null,null,null,{"$f":"C121+F121+I121+L121+O121","v":338},2704]
["Anti HAV IgM",null,null,null,"ANO",134,null,null,null,null,null,null,null,null,null,null,134,1072]
["HBsAg (Australský antigen)",null,null,null,"ANO",693,null,null,null,null,null,null,null,null,null,null,693,5544]
["Anti HBs",null,null,null,"ANO",505,null,null,null,null,null,null,null,null,null,null,505,4040]
["Anti HBc IgG +IgM",null,null,null,"ANO",442,null,null,null,null,null,null,null,null,null,null,442,3536]
["Anti HBc IgM",null,null,null,"ANO",38,null,null,null,null,null,null,null,null,null,null,38,304]
["Anti HBc IgM",null,null,null,"ANO",38,null,null,null,null,null,null,null,null,null,null,38,304]
["HCV  (Ag/Ab)",null,null,null,"ANO",511,null,null,null,null,null,null,null,null,null,null,511,4088]
["HIV-1 (protilátky)",null,null,null,"ANO",445,null,null,null,null,null,null,null,null,null,null,445,3560]
["Ab/CMV IgG kvantit.",null,null,null,"ANO",215,null,null,null,null,null,null,null,null,null,null,215,1720]
["Ab/CMV IgM",null,null,null,"ANO",215,null,null,null,null,null,null,null,null,null,null,215,1720]
["Ab/Toxoplazma IgG kvant.",null,null,null,"ANO",86,null,null,null,null,null,null,null,null,null,null,86,688]
["Ab/Toxopl.IgM",null,null,null,"ANO",86,null,null,null,null,null,null,null,null,null,null,86,688]
["Ab/SARS-COV-2-IgG",null,null,null,"ANO",700,"ANO",null,null,null,null,null,null,null,null,null,700,{"$f":"Q134*8","v":5600}]
[]
["Nepovinné reportované testy - část 2."]
["Označení reportovaného testu","Pracoviště Náchod","Počet vzorků","Statim","Pracoviště Rychnov n/K","Počet vzorků","Statim","CELKEM počet vzorků za všechny lokality/ 1 rok","Celkem počet reportovaných testů za všechny lokality/ 8 let","délka trvání vyšetření Statim","možné velikosti balení/počet testů","pipetovaný objem vzorku (ul)","stabilita reagencie na palubě analyzátoru (dny)","doporučený interval kalibrace, stabilita kalibrace (dny)","reagencie připravené k použití (ANO/NE)","kalibrační materál připravený k použití (ANO/NE)","kontrolní materiál připravený k použití (ANO/NE)","reagencie označené RFID (ANO/NE)","kalibrační materál označený RFID (ANO/NE)","kontrolní materiál označený RFID (ANO/NE)","V portfoliu ANO/NE"]
["ELF score (Enhanced Liver Fibrosis)","ANO",129,null,null,null,null,{"$f":"C138+F138","v":129},{"$f":"H138*8","v":1032}]
["Eozinofilní kationový protein (ECP)","ANO",372,null,null,null,null,372,{"$f":"H139*8","v":2976}]
["Anti-CCP",null,null,null,"ANO",325,null,325,2600]
["TSI (TSH receptor Stimulating Imunoglobulins)","ANO",364,null,null,null,null,364,2912]
["Preeklampsie","ANO",148,"ANO",null,null,null,148,1184]
["HE4 (Human Epididymal protein 4)","ANO",105,null,null,null,null,105,840]
["Carbohydrate antigen 125*","ANO",105,null,null,null,null,105,{"$f":"H144*8","v":840}]
["ROMA score","ANO",102,null,null,null,null,102,816]
["SCC antigen",null,null,null,"ANO",21,null,21,168]
["Cytokeratin fragment 21-1 (CYFRA) v séru a punktátu","ANO",363,null,"ANO",17,null,380,3040]
["Carbohydrate antigen 72-4","ANO",1013,null,"ANO",139,null,1152,9216]
["proPSA",null,null,null,"ANO",78,null,{"$f":"F149","v":78},{"$f":"H149*8","v":624}]
["NSE","ANO",322,null,"ANO",26,null,348,2784]
["ALP-kostní (osteáza)",null,null,null,"ANO",23,null,23,184]
["Osteokalcin","ANO",2031,null,"ANO",32,null,2063,16504]
["Beta-CrossLaps","ANO",1854,null,null,null,null,1854,14832]
["Prokolagen typ I (Propeptid prokolagenu I)","ANO",608,null,null,null,null,608,4864]
["Adrenokortikotropin (ACTH)","ANO",82,null,"ANO",65,null,147,1176]
["Ab/Treponema screen",null,null,null,"ANO",860,null,860,6880]
["CMV avidita",null,null,null,"ANO",10,null,{"$f":"C157+F157","v":10},{"$f":"H157*8","v":80}]
["Specifické IgE proti: trávy I (směs)","ANO",104,null,null,null,null,104,832]
["Specifické IgE proti: směs roztoči","ANO",237,null,null,null,null,237,1896]
["Specifické IgE proti: směs plísně","ANO",34,null,null,null,null,34,272]
["Specifické IgE proti: směs stromy 9","ANO",108,null,null,null,null,108,864]
["Specifické IgE proti: kočka - srst","ANO",51,null,null,null,null,51,408]
["Specifické IgE proti: pes - epitelie","ANO",43,null,null,null,null,43,344]
["Specifické IgE proti: vaječný bílek","ANO",61,null,null,null,null,61,488]
["Specifické IgE proti: mléko kravské","ANO",137,null,null,null,null,137,1096]
["Specifické IgE proti: mouka pšeničná","ANO",86,null,null,null,null,86,688]
["Specifické IgE proti: vaječný žloutek","ANO",39,null,null,null,null,39,312]
["Specifické IgE proti: gluten - lepek","ANO",80,null,null,null,null,80,640]
["Specifické IgE proti: včela medonosná","ANO",30,null,null,null,null,30,240]
["Specifické IgE proti: vosa obecná","ANO",34,null,null,null,null,34,272]
["Specifické IgE proti: Aspergillus fumigatus","ANO",17,null,null,null,null,17,136]
["Specifické IgE proti: Alternaria tenui","ANO",34,null,null,null,null,34,272]
["Specifické IgE proti: pyl pelyněk černobýl (Artemisia vulgaris)","ANO",12,null,null,null,null,12,96]
[]
[]
[null,"Počet požadovaných metod - Pracoviště Náchod",null,null,"Počet požadovaných metod - Pracoviště Rychnov n/K",null,null,"Počet požadovaných metod - Pracoviště Broumov",null,null,"Počet požadovaných metod - Pracoviště Jaroměř",null,null,"Počet požadovaných metod - Pracoviště Opočno",null,"Délka trvání nejdelšího požadovaného vyšetření",null,null,"Možné velikosti balení/počet testů",null,"Počet metod s pipetovaným objemem větším než 50 ul","Počet metod se stabilitou na palubě analyzátoru kratší než 14 dní","Počet metod se stabilitou kalibrace kratší než 7 dní","Počet metod, které vyžadují manuální přípravu            (včetně ředění lyofilizovaného materiálu)",null,"Počet metod, pro které je potřeba manuální příprava kalibračního materiálu   (včetně ředění lyofilizovaného materiálu)",null,"Počet metod, pro které je potřeba manuální příprava kontrolního materiálu   (včetně ředění lyofilizovaného materiálu)",null,"Počet diagnostik, které jsou označeny RFID"]
["Náchod",{"$f":"COUNTIF(B5:B134,\"ANO\")","v":103}]
["Rychnov nad Kněžnou",null,null,null,{"$f":"COUNTIF(E5:E134,\"ANO\")","v":122}]
["Broumov",null,null,null,null,null,null,{"$f":"COUNTIF(H5:H134,\"ANO\")","v":55}]
["Jaroměř",null,null,null,null,null,null,null,null,null,{"$f":"COUNTIF(K5:K134,\"ANO\")","v":45}]
["Opočno",null,null,null,null,null,null,null,null,null,null,null,null,{"$f":"COUNTIF(N5:N134,\"ANO\")","v":54}]
[]
[]
["Příslušenství, ostatní spotřební a provozní materiál"]
["Účastník doplní veškerý spotřební materiál pro potřebný pro provedení reportovaných testů dle požadavků zadavatele (tato tabulka bude tvořit neoddělitenou přílohu č. 3 Rámcové kupní smlouvy)","Nabízený materiál (obchodní název)","Analytický systém","Dodavatel","Velikost balení","Katalogové / objednací číslo"]
["Další reagencie potřebné pro požadovaná vyšetření (specifické promývací roztoky, diluenty, pyridoxal-6-fosfát apod.)"]
[]
[]
[]
[]
[]
[]
[]
[]
[]
[]
[]
[]
[]
[]
[]
[]
[]
[]
[]
[]
[]
[]
[]
[]
[]
[]
[]
[]
[]
[]
[]
[]
[]
[]
[]
[]
[]
[]
[]
[]
[]
["Kalibrační materiály"]
[]
[]
[]
[]
[]
[]
[]
[]
[]
[]
[]
[]
[]
[]
[]
[]
[]
[]
[]
[]
[]
[]
[]
[]
[]
[]
[]
[]
[]
[]
[]
[]
[]
[]
[]
[]
[]
[]
[]
[]
[]
[]
["Kontrolní materiály"]
[]
[]
[]
[]
[]
[]
[]
[]
[]
[]
[]
[]
[]
[]
[]
[]
[]
[]
[]
[]
[]
[]
[]
[]
[]
[]
[]
[]
[]
[]
[]
["Příslušenství, ostatní spotřební a provozní materiál"]